fUST/lending_fUST_20250905
["ID","MTS","AMOUNT","RATE_DAILY","PERIOD"]
[383679462,1757082633084,-480.0,0.00013698,2]
[383679463,1757082633095,-676.74,0.00013698,2]
[383679464,1757082633107,-1650.7,0.00013698,2]
[383679465,1757082633118,-480.0,0.00013698,2]
[383679466,1757082633130,-243.802115,0.00013699,2]
[383679467,1757082633141,-153.24667946,0.00013872,2]
[383679468,1757082633155,-300.0,0.00013971,2]
[383679469,1757082633167,-300.0,0.00013971,2]
[383679470,1757082633179,-300.0,0.00013971,2]
[383679471,1757082633191,-300.0,0.00013971,2]
[383679472,1757082633203,-300.0,0.00013971,2]
[383679473,1757082633215,-300.0,0.00013971,2]
[383679474,1757082633239,-300.0,0.00013971,2]
[383679475,1757082633252,-300.0,0.00013971,2]
[383679476,1757082633264,-300.0,0.00013971,2]
[383679477,1757082633275,-300.0,0.00013971,2]
[383679478,1757082633287,-300.0,0.00013971,2]
[383679479,1757082633299,-300.0,0.00013971,2]
[383679480,1757082633312,-300.0,0.00013971,2]
[383679481,1757082633323,-300.0,0.00013971,2]
[383679482,1757082633339,-300.0,0.00013971,2]
[383679483,1757082633351,-500.0,0.00013971,2]
[383679484,1757082633362,-480.0,0.00013972,2]
[383679485,1757082633374,-480.0,0.00013972,2]
[383679486,1757082633386,-357.02787328,0.00013972,2]
[383679487,1757082633398,-480.0,0.00013972,2]
[383679488,1757082633410,-722.31,0.00013972,2]
[383679489,1757082633421,-1690.25,0.00013972,2]
[383679490,1757082633435,-548.98,0.00013972,2]
[383679491,1757082633445,-3226.32,0.00013972,2]
[383679492,1757082633456,-480.0,0.00013972,2]
[383679493,1757082633468,-480.0,0.00013972,2]
[383679494,1757082633479,-480.0,0.00013972,2]
[383679495,1757082633490,-585.2,0.00013972,2]
[383679496,1757082633501,-753.13,0.00013972,2]
[383679497,1757082633511,-480.0,0.00013972,2]
[383679498,1757082633521,-480.0,0.00013972,2]
[383679499,1757082633531,-434.1989678,0.00013972,2]
[383679500,1757082633542,-480.0,0.00013972,2]
[383679501,1757082633552,-480.0,0.00013972,2]
[383679502,1757082633563,-480.0,0.00013972,2]
[383679503,1757082633574,-289.41551961,0.00013972,2]
[383679504,1757082633586,-480.0,0.00013972,2]
[383679505,1757082633597,-480.0,0.00013972,2]
[383679506,1757082633608,-480.0,0.00013972,2]
[383679507,1757082633619,-480.0,0.00013972,2]
[383679508,1757082633632,-949.39,0.00013972,2]
[383679509,1757082633644,-861.7,0.00013972,2]
[383679510,1757082633655,-1893.72,0.00013972,2]
[383679511,1757082633667,-480.0,0.00013972,2]
[383679512,1757082633678,-739.67,0.00013972,2]
[383679513,1757082633690,-480.0,0.00013972,2]
[383679514,1757082633701,-480.0,0.00013972,2]
[383679515,1757082633712,-1009.63,0.00013972,2]
[383679516,1757082633737,-480.0,0.00013972,2]
[383679517,1757082633748,-480.0,0.00013972,2]
[383679518,1757082633760,-676.74,0.00013972,2]
[383679519,1757082633771,-1650.7,0.00013972,2]
[383679520,1757082633781,-14619.42220246,0.00014,2]
[383679521,1757082633792,-1473.3888256,0.0001422,2]
[383679522,1757082633803,-57.69189298,0.00014244,2]
[383679523,1757082633817,-274.31180953,0.00014244,2]
[383679550,1757082637909,-480.0,0.00013698,2]
[383679552,1757082637919,-480.0,0.00013698,2]
[383679554,1757082637929,-231.06,0.00013698,2]
[383679562,1757082637994,-248.94,0.00013698,2]
[383679564,1757082638003,-480.0,0.00013972,2]
[383679566,1757082638013,-488.12795626,0.00013972,2]
[383679568,1757082638023,-480.0,0.00013972,2]
[383679570,1757082638032,-2258.97598669,0.00014244,2]
[383679572,1757082638044,-724.88990049,0.00014244,2]
[383679574,1757082638055,-500.0,0.00014244,2]
[383680066,1757082644448,-480.0,0.00013698,2]
[383680069,1757082644460,-480.0,0.00013698,2]
[383680071,1757082644472,-480.0,0.00013698,2]
[383680073,1757082644488,-480.0,0.00013698,2]
[383680075,1757082644500,-682.83,0.00013698,2]
[383680078,1757082644512,-480.0,0.00013698,2]
[383680080,1757082644523,-480.0,0.00013972,2]
[383680082,1757082644536,-682.83,0.00013972,2]
[383680084,1757082644549,-500.0,0.00014243,2]
[383680087,1757082644560,-155.25281375,0.00014243,2]
[383680090,1757082644571,-500.0,0.00014243,2]
[383680092,1757082644582,-464.93621391,0.00014243,2]
[383680093,1757082644594,-500.0,0.00014243,2]
[383680095,1757082644605,-203.05946922,0.00014243,2]
[383680097,1757082644617,-507.23776327,0.00014243,2]
[383680099,1757082644628,-412.09264666,0.00014243,2]
[383680101,1757082644640,-94441.69162321,0.00014244,2]
[383680102,1757082644657,-96211.54279885,0.00014244,2]
[383680103,1757082644669,-500.0,0.00014245,2]
[383680104,1757082644681,-500.0,0.00014245,2]
[383680105,1757082644692,-257.61,0.00014246,2]
[383680106,1757082644703,-618.87,0.00014246,2]
[383680107,1757082644713,-480.0,0.00014246,2]
[383680108,1757082644724,-1690.25,0.00014246,2]
[383680109,1757082644739,-548.98,0.00014246,2]
[383680110,1757082644751,-3226.32,0.00014246,2]
[383680111,1757082644762,-480.0,0.00014246,2]
[383680112,1757082644775,-245.68,0.00014246,2]
[383680113,1757082644787,-480.0,0.00014246,2]
[383680114,1757082644799,-585.2,0.00014246,2]
[383680115,1757082644810,-753.13,0.00014246,2]
[383680116,1757082644822,-480.0,0.00014246,2]
[383680117,1757082644835,-480.0,0.00014246,2]
[383680118,1757082644847,-157.0,0.00014246,2]
[383680119,1757082644859,-500.0,0.00014246,2]
[383680120,1757082644874,-480.0,0.00014246,2]
[383680121,1757082644886,-245.39647936,0.00014246,2]
[383680122,1757082644897,-480.0,0.00014246,2]
[383680123,1757082644907,-480.0,0.00014246,2]
[383680124,1757082644918,-480.0,0.00014246,2]
[383680125,1757082644929,-480.0,0.00014246,2]
[383680126,1757082644941,-480.0,0.00014246,2]
[383680127,1757082644952,-949.39,0.00014246,2]
[383680128,1757082644964,-861.7,0.00014246,2]
[383680129,1757082644983,-1893.72,0.00014246,2]
[383680130,1757082644996,-605.1,0.00014246,2]
[383680131,1757082645008,-739.67,0.00014246,2]
[383680132,1757082645018,-577.33,0.00014246,2]
[383680133,1757082645029,-480.0,0.00014246,2]
[383680134,1757082645041,-1009.63,0.00014246,2]
[383680135,1757082645052,-480.0,0.00014246,2]
[383680136,1757082645062,-304.87579116,0.00014246,2]
[383680137,1757082645075,-676.74,0.00014246,2]
[383680138,1757082645085,-1650.7,0.00014246,2]
[383680139,1757082645096,-682.83,0.00014246,2]
[383680140,1757082645106,-600.0,0.00014249,2]
[383680141,1757082645118,-253.91644054,0.00014273,2]
[383680142,1757082645128,-503.91850416,0.00014273,2]
[383680143,1757082645139,-500.0,0.00014273,2]
[383680144,1757082645151,-500.0,0.00014273,2]
[383680145,1757082645162,-500.0,0.00014273,2]
[383680146,1757082645173,-500.0,0.00014273,2]
[383680147,1757082645184,-500.0,0.00014273,2]
[383680148,1757082645195,-500.0,0.00014273,2]
[383680149,1757082645206,-350.64169296,0.00014273,2]
[383680150,1757082645216,-500.0,0.00014273,2]
[383680151,1757082645229,-501.45334526,0.00014273,2]
[383680153,1757082645240,-500.0,0.0001429,2]
[383680155,1757082645251,-227.52124409,0.0001429,2]
[383680157,1757082645261,-389.79935051,0.0001429,2]
[383680159,1757082645271,-500.0,0.0001429,2]
[383680161,1757082645282,-500.0,0.0001429,2]
[383680162,1757082645292,-500.0,0.0001429,2]
[383680163,1757082645303,-500.0,0.0001429,2]
[383680165,1757082645314,-500.0,0.0001429,2]
[383680167,1757082645325,-500.0,0.0001429,2]
[383680169,1757082645336,-357.77832063,0.0001429,2]
[383680171,1757082645346,-500.0,0.0001429,2]
[383680173,1757082645357,-500.0,0.0001429,2]
[383680175,1757082645367,-12111.6329609,0.00014291,2]
[383680176,1757082645378,-2234.4953536,0.00014291,2]
[383680177,1757082645389,-7867.2499967,0.00014291,2]
[383680178,1757082645400,-151.0,0.00014291,2]
[383680179,1757082645410,-151.0,0.00014291,2]
[383680180,1757082645422,-184.477739,0.00014291,2]
[383680181,1757082645433,-448.361043,0.00014291,2]
[383680182,1757082645444,-448.361043,0.00014291,2]
[383680183,1757082645455,-151.0,0.00014291,2]
[383680184,1757082645466,-448.361043,0.00014291,2]
[383680185,1757082645480,-257.049006,0.00014291,2]
[383680186,1757082645490,-448.361043,0.00014291,2]
[383680187,1757082645502,-230.17686261,0.0001432,2]
[383680188,1757082645512,-919.78674301,0.00014336,2]
[383680189,1757082645523,-2347.87260389,0.00014353,2]
[383680191,1757082645535,-250.0,0.00014353,2]
[383680193,1757082645546,-250.0,0.00014353,2]
[383680195,1757082645557,-250.0,0.00014353,2]
[383680197,1757082645569,-250.0,0.00014353,2]
[383680199,1757082645580,-250.0,0.00014353,2]
[383680202,1757082645591,-250.0,0.00014353,2]
[383680204,1757082645602,-250.0,0.00014353,2]
[383680206,1757082645613,-250.0,0.00014353,2]
[383680208,1757082645623,-250.0,0.00014353,2]
[383680210,1757082645633,-250.0,0.00014353,2]
[383680212,1757082645643,-187.78006525,0.00014353,2]
[383680214,1757082645656,-151.0,0.00014361,2]
[383680216,1757082645665,-151.0,0.00014361,2]
[383680218,1757082645674,-151.0,0.00014361,2]
[383680220,1757082645683,-151.0,0.00014361,2]
[383680222,1757082645692,-151.0,0.00014361,2]
[383680224,1757082645703,-151.0,0.00014361,2]
[383680226,1757082645712,-151.0,0.00014361,2]
[383680228,1757082645722,-151.0,0.00014361,2]
[383680230,1757082645736,-151.0,0.00014361,2]
[383680244,1757082645899,-151.0,0.00014361,2]
[383680246,1757082645917,-151.0,0.00014361,2]
[383680248,1757082645927,-151.0,0.00014361,2]
[383680250,1757082645937,-151.0,0.00014361,2]
[383680252,1757082645947,-151.0,0.00014361,2]
[383680254,1757082645956,-151.129429,0.00014361,2]
[383680256,1757082645966,-151.0,0.00014361,2]
[383680258,1757082645977,-448.361043,0.00014361,2]
[383680259,1757082645987,-448.361043,0.00014361,2]
[383680261,1757082645997,-151.0,0.00014361,2]
[383680263,1757082646006,-448.361043,0.00014361,2]
[383680265,1757082646016,-448.361043,0.00014361,2]
[383680267,1757082646026,-905.32675829,0.00014361,2]
[383680269,1757082646036,-151.0,0.00014361,2]
[383680271,1757082646045,-151.0,0.00014361,2]
[383680273,1757082646055,-151.0,0.00014361,2]
[383680275,1757082646064,-151.0,0.00014361,2]
[383680277,1757082646073,-151.0,0.00014361,2]
[383680279,1757082646082,-151.0,0.00014361,2]
[383680281,1757082646092,-151.0,0.00014361,2]
[383680283,1757082646101,-151.0,0.00014361,2]
[383680284,1757082646110,-151.0,0.00014361,2]
[383680286,1757082646119,-151.0,0.00014361,2]
[383680288,1757082646128,-151.0,0.00014361,2]
[383680290,1757082646138,-262.11826148,0.00014361,2]
[383680292,1757082646147,-151.0,0.00014361,2]
[383680294,1757082646156,-151.0,0.00014361,2]
[383680296,1757082646165,-151.0,0.00014361,2]
[383680298,1757082646175,-151.0,0.00014361,2]
[383680300,1757082646183,-151.0,0.00014361,2]
[383680302,1757082646193,-151.0,0.00014361,2]
[383680304,1757082646203,-151.0,0.00014361,2]
[383680306,1757082646212,-151.0,0.00014361,2]
[383680308,1757082646222,-151.0,0.00014361,2]
[383680310,1757082646236,-151.0,0.00014361,2]
[383680312,1757082646245,-151.0,0.00014361,2]
[383680314,1757082646255,-151.0,0.00014361,2]
[383680316,1757082646265,-500.0,0.00014361,2]
[383680318,1757082646274,-500.0,0.00014361,2]
[383680320,1757082646284,-195.77550567,0.00014361,2]
[383680322,1757082646293,-151.0,0.00014361,2]
[383680324,1757082646303,-151.0,0.00014361,2]
[383680326,1757082646312,-151.0,0.00014361,2]
[383680328,1757082646321,-151.0,0.00014361,2]
[383680330,1757082646331,-151.0,0.00014361,2]
[383680332,1757082646341,-151.0,0.00014361,2]
[383680334,1757082646351,-151.0,0.00014361,2]
[383680336,1757082646360,-151.0,0.00014361,2]
[383680338,1757082646369,-151.0,0.00014361,2]
[383680340,1757082646379,-151.0,0.00014361,2]
[383680342,1757082646387,-151.0,0.00014361,2]
[383680344,1757082646397,-151.0,0.00014361,2]
[383680346,1757082646407,-151.0,0.00014361,2]
[383680347,1757082646417,-151.0,0.00014361,2]
[383680348,1757082646426,-151.0,0.00014361,2]
[383680349,1757082646435,-151.0,0.00014361,2]
[383680350,1757082646445,-151.0,0.00014361,2]
[383680351,1757082646454,-151.0,0.00014361,2]
[383680352,1757082646463,-151.0,0.00014361,2]
[383680353,1757082646472,-151.0,0.00014361,2]
[383680354,1757082646485,-151.0,0.00014361,2]
[383680355,1757082646494,-151.0,0.00014361,2]
[383680356,1757082646503,-151.0,0.00014361,2]
[383680357,1757082646513,-151.0,0.00014361,2]
[383680358,1757082646523,-151.0,0.00014361,2]
[383680359,1757082646532,-151.0,0.00014361,2]
[383680360,1757082646542,-151.0,0.00014361,2]
[383680361,1757082646552,-151.0,0.00014361,2]
[383680362,1757082646562,-151.0,0.00014361,2]
[383680363,1757082646572,-151.0,0.00014361,2]
[383680364,1757082646582,-151.0,0.00014361,2]
[383680365,1757082646592,-151.0,0.00014361,2]
[383680366,1757082646602,-151.0,0.00014361,2]
[383680367,1757082646611,-151.0,0.00014361,2]
[383680368,1757082646620,-1000.0,0.00014361,2]
[383680369,1757082646630,-1000.0,0.00014361,2]
[383680370,1757082646640,-1000.0,0.00014361,2]
[383680371,1757082646650,-1000.0,0.00014361,2]
[383680372,1757082646659,-1000.0,0.00014361,2]
[383680373,1757082646669,-1000.0,0.00014361,2]
[383680374,1757082646678,-1000.0,0.00014361,2]
[383680375,1757082646687,-1000.0,0.00014361,2]
[383680376,1757082646697,-1000.0,0.00014361,2]
[383680377,1757082646706,-1000.0,0.00014361,2]
[383680378,1757082646716,-1000.0,0.00014361,2]
[383680379,1757082646725,-1000.0,0.00014361,2]
[383680380,1757082646739,-1000.0,0.00014361,2]
[383680381,1757082646748,-151.0,0.00014361,2]
[383680382,1757082646757,-151.0,0.00014361,2]
[383680383,1757082646767,-1195.26446823,0.00014364,2]
[383680384,1757082646778,-500.0,0.00014377,2]
[383680385,1757082646787,-5114.2882827,0.00014378,2]
[383680386,1757082646797,-2434.74389024,0.00014408,2]
[383680387,1757082646807,-2524.82941417,0.00014463,2]
[383680388,1757082646818,-2000.0,0.000145,2]
[383680389,1757082646828,-2618.2481025,0.00014518,2]
[383680390,1757082646838,-500.0,0.00014519,2]
[383680391,1757082646847,-218.67670021,0.0001452,2]
[383680392,1757082646856,-500.0,0.0001452,2]
[383680393,1757082646868,-2812.89592734,0.0001452,2]
[383680394,1757082646881,-180.0,0.0001452,2]
[383680395,1757082646890,-157.0,0.0001452,2]
[383680396,1757082646900,-151.0,0.0001452,2]
[383680397,1757082646911,-151.0,0.0001452,2]
[383680398,1757082646921,-151.0,0.0001452,2]
[383680399,1757082646931,-151.0,0.0001452,2]
[383680400,1757082646940,-151.0,0.0001452,2]
[383680401,1757082646950,-151.0,0.0001452,2]
[383680402,1757082646959,-151.0,0.0001452,2]
[383680403,1757082646970,-151.0,0.0001452,2]
[383680404,1757082646980,-151.780187,0.0001452,2]
[383680405,1757082646989,-480.0,0.0001452,2]
[383680406,1757082646998,-152.673523,0.0001452,2]
[383680407,1757082647008,-1690.25,0.0001452,2]
[383680408,1757082647019,-548.98,0.0001452,2]
[383680409,1757082647029,-3226.32,0.0001452,2]
[383680410,1757082647038,-480.0,0.0001452,2]
[383680411,1757082647048,-151.0,0.0001452,2]
[383680412,1757082647057,-480.0,0.0001452,2]
[383680413,1757082647066,-151.0,0.0001452,2]
[383680414,1757082647075,-151.0,0.0001452,2]
[383680415,1757082647085,-585.2,0.0001452,2]
[383680416,1757082647095,-753.13,0.0001452,2]
[383680417,1757082647104,-480.0,0.0001452,2]
[383680418,1757082647114,-480.0,0.0001452,2]
[383680419,1757082647123,-151.0,0.0001452,2]
[383680420,1757082647133,-151.0,0.0001452,2]
[383680421,1757082647143,-151.0,0.0001452,2]
[383680422,1757082647153,-151.0,0.0001452,2]
[383680423,1757082647163,-151.0,0.0001452,2]
[383680424,1757082647172,-151.0,0.0001452,2]
[383680425,1757082647182,-480.0,0.0001452,2]
[383680426,1757082647192,-615.43572993,0.0001452,2]
[383680427,1757082647202,-480.0,0.0001452,2]
[383680428,1757082647211,-151.0,0.0001452,2]
[383680429,1757082647221,-151.0,0.0001452,2]
[383680430,1757082647234,-151.0,0.0001452,2]
[383680431,1757082647243,-480.0,0.0001452,2]
[383680432,1757082647253,-480.0,0.0001452,2]
[383680433,1757082647263,-480.0,0.0001452,2]
[383680434,1757082647272,-949.39,0.0001452,2]
[383680435,1757082647282,-861.7,0.0001452,2]
[383680436,1757082647292,-1893.72,0.0001452,2]
[383680437,1757082647302,-739.67,0.0001452,2]
[383680438,1757082647312,-151.0,0.0001452,2]
[383680439,1757082647321,-480.0,0.0001452,2]
[383680440,1757082647331,-1009.63,0.0001452,2]
[383680441,1757082647341,-480.0,0.0001452,2]
[383680442,1757082647350,-448.361043,0.0001452,2]
[383680443,1757082647360,-676.74,0.0001452,2]
[383680444,1757082647370,-448.361043,0.0001452,2]
[383680445,1757082647379,-226.302497,0.0001452,2]
[383680446,1757082647389,-1650.7,0.0001452,2]
[383680447,1757082647399,-448.361043,0.0001452,2]
[383680448,1757082647409,-448.361043,0.0001452,2]
[383680449,1757082647418,-682.83,0.0001452,2]
[383680450,1757082647428,-500.0,0.00014566,2]
[383680451,1757082647439,-2715.12328229,0.00014573,2]
[383680452,1757082647449,-2815.58284374,0.00014628,2]
[383680453,1757082647460,-151.0,0.00014676,2]
[383680454,1757082647469,-151.0,0.00014676,2]
[383680455,1757082647482,-298.61212,0.00014676,2]
[383680456,1757082647492,-2919.75940895,0.00014683,2]
[383680457,1757082647502,-278.69880537,0.00014692,2]
[383680458,1757082647512,-28339.10728445,0.00014694,2]
[383680459,1757082647521,-151.0,0.00014694,2]
[383680460,1757082647531,-151.0,0.00014694,2]
[383680461,1757082647541,-151.0,0.00014694,2]
[383680462,1757082647551,-201.05749,0.00014694,2]
[383680463,1757082647561,-151.0,0.00014694,2]
[383680464,1757082647570,-151.0,0.00014694,2]
[383680465,1757082647580,-230.579384,0.00014694,2]
[383680466,1757082647589,-151.0,0.00014694,2]
[383680467,1757082647599,-200.637844,0.00014694,2]
[383680468,1757082647609,-151.0,0.00014694,2]
[383680469,1757082647618,-151.0,0.00014694,2]
[383680470,1757082647628,-282.983208,0.00014694,2]
[383680471,1757082647637,-192.571936,0.00014694,2]
[383680472,1757082647646,-151.0,0.00014694,2]
[383680473,1757082647655,-278.25402,0.00014694,2]
[383680474,1757082647665,-151.0,0.00014694,2]
[383680475,1757082647675,-3027.79050709,0.00014738,2]
[383680476,1757082647684,-199.36933048,0.00014773,2]
[383680477,1757082647694,-500.0,0.00014773,2]
[383680478,1757082647703,-503.3121361,0.00014773,2]
[383680479,1757082647712,-500.0,0.00014773,2]
[383680480,1757082647723,-500.0,0.00014773,2]
[383680481,1757082647736,-500.0,0.00014773,2]
[383680482,1757082647745,-500.76948217,0.00014773,2]
[383680483,1757082647755,-500.0,0.00014773,2]
[383680484,1757082647764,-501.70312654,0.00014773,2]
[383680485,1757082647773,-500.0,0.00014773,2]
[383680486,1757082647782,-500.0,0.00014773,2]
[383680487,1757082647791,-500.0,0.00014773,2]
[383680488,1757082647800,-151.0,0.00014773,2]
[383680489,1757082647810,-151.0,0.00014784,2]
[383680490,1757082647819,-155.108245,0.00014784,2]
[383680491,1757082647829,-151.0,0.00014784,2]
[383680492,1757082647838,-151.0,0.00014784,2]
[383680493,1757082647847,-3139.81875585,0.00014793,2]
[383680494,1757082647858,-151.0,0.00014793,2]
[383680495,1757082647868,-151.0,0.00014793,2]
[383680496,1757082647877,-151.0,0.00014793,2]
[383680497,1757082647887,-227.59442,0.00014793,2]
[383680498,1757082647898,-151.0,0.00014793,2]
[383680499,1757082647907,-151.0,0.00014793,2]
[383680500,1757082647916,-151.0,0.00014793,2]
[383680501,1757082647927,-500.0,0.00014794,2]
[383680502,1757082647936,-157.0,0.00014794,2]
[383680503,1757082647946,-314.17,0.00014794,2]
[383680504,1757082647956,-1690.25,0.00014794,2]
[383680505,1757082647967,-548.98,0.00014794,2]
[383680506,1757082647977,-3226.32,0.00014794,2]
[383680507,1757082647988,-480.0,0.00014794,2]
[383680508,1757082647997,-480.0,0.00014794,2]
[383680509,1757082648007,-585.2,0.00014794,2]
[383680510,1757082648016,-753.13,0.00014794,2]
[383680511,1757082648027,-480.0,0.00014794,2]
[383680512,1757082648037,-480.0,0.00014794,2]
[383680513,1757082648047,-482.99873273,0.00014794,2]
[383680514,1757082648056,-480.0,0.00014794,2]
[383680515,1757082648066,-480.0,0.00014794,2]
[383680516,1757082648076,-480.0,0.00014794,2]
[383680517,1757082648085,-480.0,0.00014794,2]
[383680518,1757082648095,-949.39,0.00014794,2]
[383680519,1757082648104,-861.7,0.00014794,2]
[383680520,1757082648115,-1893.72,0.00014794,2]
[383680521,1757082648124,-739.67,0.00014794,2]
[383680522,1757082648134,-480.0,0.00014794,2]
[383680523,1757082648144,-1009.63,0.00014794,2]
[383680524,1757082648153,-480.0,0.00014794,2]
[383680525,1757082648163,-448.361043,0.00014794,2]
[383680526,1757082648173,-676.74,0.00014794,2]
[383680527,1757082648183,-448.361043,0.00014794,2]
[383680528,1757082648192,-1650.7,0.00014794,2]
[383680529,1757082648202,-448.361043,0.00014794,2]
[383680530,1757082648212,-448.361043,0.00014794,2]
[383680531,1757082648222,-682.83,0.00014794,2]
[383680532,1757082648235,-1000.0,0.00014821,2]
[383680533,1757082648245,-500.0,0.00014821,2]
[383680534,1757082648255,-503.70918573,0.00014821,2]
[383680535,1757082648266,-3255.99204981,0.00014848,2]
[383680536,1757082648275,-504.06501436,0.000149,2]
[383680537,1757082648285,-3376.46375566,0.00014903,2]
[383680538,1757082648295,-350.02710928,0.00014958,2]
[383680539,1757082648304,-409.0,0.00014969,2]
[383680540,1757082648314,-633.0,0.00014969,2]
[383680541,1757082648323,-2153.0,0.00014969,2]
[383680542,1757082648332,-1500.000001,0.00015,2]
[383680543,1757082648342,-160.0,0.00015,2]
[383680544,1757082648351,-151.0,0.0001501,2]
[383680545,1757082648361,-530.48792916,0.00015064,2]
[383680546,1757082648371,-160.0,0.00015064,2]
[383680547,1757082648382,-417.15472785,0.00015064,2]
[383680548,1757082648391,-160.0,0.00015064,2]
[383680549,1757082648401,-217.560113,0.00015064,2]
[383680550,1757082648411,-160.0,0.00015064,2]
[383680551,1757082648421,-232.96244142,0.00015064,2]
[383680552,1757082648431,-846.49761657,0.00015064,2]
[383680553,1757082648441,-203.18701864,0.00015064,2]
[383680554,1757082648452,-160.0,0.00015064,2]
[383680555,1757082648462,-160.0,0.00015064,2]
[383680556,1757082648472,-151.0,0.00015065,2]
[383680557,1757082648486,-151.0,0.00015065,2]
[383680558,1757082648497,-500.0,0.00015068,2]
[383680559,1757082648507,-157.0,0.00015068,2]
[383680560,1757082648517,-1690.25,0.00015068,2]
[383680561,1757082648527,-548.98,0.00015068,2]
[383680562,1757082648537,-3226.32,0.00015068,2]
[383680563,1757082648547,-480.0,0.00015068,2]
[383680564,1757082648557,-480.0,0.00015068,2]
[383680565,1757082648568,-585.2,0.00015068,2]
[383680566,1757082648578,-753.13,0.00015068,2]
[383680567,1757082648587,-480.0,0.00015068,2]
[383680568,1757082648598,-480.0,0.00015068,2]
[383680569,1757082648607,-480.0,0.00015068,2]
[383680570,1757082648617,-151.0,0.00015068,2]
[383680571,1757082648626,-480.0,0.00015068,2]
[383680572,1757082648636,-480.0,0.00015068,2]
[383680573,1757082648646,-480.0,0.00015068,2]
[383680574,1757082648655,-949.39,0.00015068,2]
[383680575,1757082648665,-861.7,0.00015068,2]
[383680576,1757082648675,-1893.72,0.00015068,2]
[383680577,1757082648685,-739.67,0.00015068,2]
[383680578,1757082648695,-480.0,0.00015068,2]
[383680579,1757082648705,-1009.63,0.00015068,2]
[383680580,1757082648715,-480.0,0.00015068,2]
[383680581,1757082648725,-676.74,0.00015068,2]
[383680582,1757082648737,-448.361043,0.00015068,2]
[383680583,1757082648747,-448.361043,0.00015068,2]
[383680584,1757082648757,-1650.7,0.00015068,2]
[383680585,1757082648767,-448.361043,0.00015068,2]
[383680586,1757082648778,-448.361052,0.00015068,2]
[383680587,1757082648788,-682.83,0.00015068,2]
[383680588,1757082648798,-151.0,0.000152,2]
[383680589,1757082648807,-362.40381106,0.00015321,2]
[383680590,1757082648816,-1002.03147663,0.00015321,2]
[383680591,1757082648826,-164.00281279,0.00015321,2]
[383680592,1757082648836,-1000.0,0.00015321,2]
[383680593,1757082648846,-500.0,0.00015342,2]
[383680594,1757082648856,-180.0,0.00015342,2]
[383680595,1757082648867,-1690.25,0.00015342,2]
[383680596,1757082648878,-548.98,0.00015342,2]
[383680597,1757082648888,-3226.32,0.00015342,2]
[383680598,1757082648898,-480.0,0.00015342,2]
[383680599,1757082648908,-480.0,0.00015342,2]
[383680600,1757082648919,-585.2,0.00015342,2]
[383680601,1757082648929,-753.13,0.00015342,2]
[383680602,1757082648939,-480.0,0.00015342,2]
[383680603,1757082648949,-480.0,0.00015342,2]
[383680604,1757082648961,-176.72435391,0.00015342,2]
[383680605,1757082649543,-481.96661301,0.00013972,2]
[383680606,1757082649554,-303.27564609,0.00015342,2]
[383680607,1757082649564,-315.1969481,0.00015342,2]